Workbook

Sheet User Guide
R1: Version 2, 5.11.2018
B3: LCoH-Tool User Guide

Sheet Methodology
B3: Methodology

Sheet Main Input
B3: Main Input
C6: Link to reference system
C7: Choose configuration
C9: Select a country: | D9: Germany
C11: Select a building type:
C13: Select a system: | D13: Multi-Family House
C21: Country specific inputs | G21: General inputs
C23: Fuel price (Pg) | D23: 0.066 | E23: ='Default Values'!J10 & "/kWh" -> €/kWh | G23: Period of analysis (T) | H23: 25 | I23: years
C25: Electricity price (Pe) | D25: 0.254 | E25: ='Default Values'!J10 & "/kWh" -> €/kWh | G25: Real discount rate (r) | H25: 0 | I25: % p.a.
C27: Real rate of fuel price increase (rg)* | D27: 0 | E27: % p.a. | G27: Corporate tax rate for solar heating systems (TRs)* | H27: 0 | I27: % p.a.
C28: Real rate of electricity price increase (re)* | D28: 0 | E28: % p.a. | G28: Corporate tax rate for conv. systems (TRc)* | H28: 0 | I28: % p.a.
C31: * has only an influence in the advanced cost calculation if different from zero.

Sheet Simple Cost Calculation (hidden)
C3: Simple Cost Calculation
C6: Solar assisted heating system | S6: Purely conventional heating system (reference system)
D9: Conventional part of the heating system | K9: Solar part of the heating system
E11: Inputs | L11: Inputs | T11: Inputs
F12: Initial investment (I0) | G12: 13350 | H12: ='Default Values'!J10 -> € | M12: Initial investment (I0) | N12: 22721 | O12: ='Default Values'!J10 -> € | U12: Initial investment (I0) | V12: =I0_conv -> 13350 | W12: ='Default Values'!J10 -> €
M13: Total subsidies for the solar system (S0) | N13: 0 | O13: ='Default Values'!J10 -> € | U13: (equals I0 from conv. part of heating system.)
M15: Credit for conventional store | N15: 1538 | O15: ='Default Values'!J10 -> €
M16: Credit for installation of conventional store | N16: 0 | O16: ='Default Values'!J10 -> €
F19: Total yearly op. and maintenance cost (Ct) | G19: 2617 | H19: ='Default Values'!J10 & "/year" -> €/year | M19: Total yearly op. and maintenance cost (Ct) | N19: 257 | O19: ='Default Values'!J10 -> € | U19: Total yearly op. and maintenance cost (Ct) | V19: 3272 | W19: ='Default Values'!J10 & "/year" -> €/year
F21: Final energy demand per year (Et) (aggreated from DHW and SH) | G21: 29729 | H21: kWh/year | M21: Saved final energy per year (Et) (due to the use of solar thermal) | N21: 9873 | O21: kWh/year | U21: Final energy demand per year (Et) (equal to the sum of the conv. and solar part of the solar assisted heating system) | V21: =Et_conv+Et_solar -> 39602 | W21: kWh/year
E25: Result (conventional part) | L25: Result (solar part)
F26: Total cost over lifetime: | G26: =I0_conv + (Ct_conv)*IF(real_discount_rate=0,T,(((1-(1/(1+real_discount_rate/100))^(T+1))/(1-(1/(1+real_discount_rate/100))))-1)) -> 78775 | H26: ='Default Values'!J10 -> € | M26: Total cost over lifetime: | N26: =I0_solar-S0_solar-N15-N16 + Ct_solar*IF(real_discount_rate=0,T,(((1-(1/(1+real_discount_rate/100))^(T+1))/(1-(1/(1+real_discount_rate/100))))-1)) -> 27608 | O26: ='Default Values'!J10 -> €
F27: Total energy demand over lifetime: | G27: =IF(real_discount_rate=0,T,(((1-(1/(1+real_discount_rate/100))^(T+1))/(1-(1/(1+real_discount_rate/100))))-1))*Et_conv -> 743225 | H27: kWh | M27: Total saved energy over lifetime: | N27: =IF(real_discount_rate=0,T,(((1-(1/(1+real_discount_rate/100))^(T+1))/(1-(1/(1+real_discount_rate/100))))-1))*Et_solar -> 246825 | O27: kWh
F29: LCoHconv,fin | G29: =G26/G27*100 -> 10.59907834 | H29: =Currency_ct & "/kWh" -> ¢€/kWh | M29: LCoHsol,fin | N29: =N26/N27*100 -> 11.18525271 | O29: =Currency_ct & "/kWh" -> ¢€/kWh
D33: Result (solar assited heating system) | T33: Result (purely convetional system)
G34: Total cost over lifetime: | M34: =I0_conv+I0_solar-S0_solar-N15-N16 + (Ct_conv+Ct_solar)*IF(real_discount_rate=0,T,(((1-(1/(1+real_discount_rate/100))^(T+1))/(1-(1/(1+real_discount_rate/100))))-1)) -> 106383 | N34: ='Default Values'!J10 -> € | U34: Total cost over lifetime: | V34: =I0_only_conv + (Ct_only_conv)*IF(real_discount_rate=0,T,(((1-(1/(1+real_discount_rate/100))^(T+1))/(1-(1/(1+real_discount_rate/100))))-1)) -> 95150 | W34: ='Default Values'!J10 -> €
G35: Total final energy over lifetime: | M35: =IF(real_discount_rate=0,T,(((1-(1/(1+real_discount_rate/100))^(T+1))/(1-(1/(1+real_discount_rate/100))))-1))*(Et_conv + Et_solar) -> 990050 | N35: kWh | U35: Total energy demand over lifetime: | V35: =IF(real_discount_rate=0,T,(((1-(1/(1+real_discount_rate/100))^(T+1))/(1-(1/(1+real_discount_rate/100))))-1))*Et_only_conv -> 990050 | W35: kWh
G37: Saved final energy by solar input: | M37: =Et_solar/(Et_conv+Et_solar)*100 -> 24.93055906 | N37: %
G38: LCoHov,fin | M38: =M34/M35*100 -> 10.74521489 | N38: =Currency_ct & "/kWh" -> ¢€/kWh | U38: LCoHov,fin (ref) | V38: =V34/V35*100 -> 9.610625726 | W38: =Currency_ct & "/kWh" -> ¢€/kWh

Sheet Advanced Cost Calculation
C3: Advanced Cost Calculation
C6: Solar assisted heating system | Q6: Purely conventional heating system (reference system)
D9: Conventional part of the heating system | J9: Solar part of the heating system
E12: Input: Investment & Cash Inflows | K12: Input: Investment & Cash Inflows | R12: Input: Investment & Cash Inflows
E14: Initial investment (I0) | F14: 13350 | G14: ='Default Values'!J10 -> € | K14: Initial investment (I0) | L14: 22721 | M14: ='Default Values'!J10 -> € | R14: Initial investment (I0) | S14: =F14 -> 13350 | T14: ='Default Values'!J10 -> €
K15: Total subsidies for the solar system (S0) | L15: 0 | M15: ='Default Values'!J10 -> € | R15: (equals I0 from conv. part of heating system.)
E17: Residual value of the conv. part (RV) | F17: 0 | G17: ='Default Values'!J10 -> € | K17: Residual value of the solar part (RV) | L17: 0 | M17: ='Default Values'!J10 -> € | R17: Residual value of the conv. system (RV) | S17: 0 | T17: ='Default Values'!J10 -> €
E19: Asset depreciation of the conv. part (DEPt) | F19: 0 | G19: ='Default Values'!J10 & "/year" -> €/year | K19: Asset depreciation of the solar part (DEPt) | L19: 0 | M19: ='Default Values'!J10 & "/year" -> €/year | R19: Asset depreciation of a whole conv. system (DEPt) | S19: 0 | T19: ='Default Values'!J10 & "/year" -> €/year
K21: Credit for conventional store | L21: 1538 | M21: ='Default Values'!J10 -> €
K22: Credit for installation of conventional store | L22: 0 | M22: ='Default Values'!J10 -> €
E25: Input: Yearly Operation and Maintenance Costs (Ct) | K25: Input: Yearly Operation and Maintenance Costs (Ct) | R25: Input: Yearly Operation and Maintenance Costs (Ct)
E27: Electric power of controller | F27: 4 | G27: W | K27: Electric power of controller | L27: 4 | M27: W | R27: Electric power of controller | S27: 4 | T27: W
E28: Operating hours of controller | F28: 8760 | G28: h/year | K28: Operating hours of controller | L28: 8760 | M28: h/year | R28: Operating hours of controller | S28: 8760 | T28: h/year
E30: Electric power of pump | F30: 50 | G30: W | K30: Electric power of pump | L30: 80 | M30: W | R30: Electric power of pump | S30: 50 | T30: W
E31: Operating hours of pump | F31: 4000 | G31: h/year | K31: Operating hours of pump | L31: 1800 | M31: h/year | R31: Operating hours of pump | S31: 4200 | T31: h/year
E33: Annual fixed costs, e.g. gas meter | F33: 328 | G33: ='Default Values'!J10 & "/year" -> €/year | K33: Annual fixed costs, e.g. gas meter | L33: 0 | M33: ='Default Values'!J10 & "/year" -> €/year | R33: Annual fixed costs, e.g. gas meter | S33: 335 | T33: ='Default Values'!J10 & "/year" -> €/year
E35: Factor for yearly maintenance cost (% of total investment costs) | F35: 2 | G35: % p.a. | K35: Factor for yearly maintenance cost (% of total investment costs) | L35: 1 | M35: % p.a. | R35: Factor for yearly maintenance cost (% of total investment costs) | S35: 2 | T35: % p.a.
E38: Input: Final energy demand, i.e. fuel demand (Et) | K38: Input: Saved final energy, i.e. saved fuel (Et) | R38: Input: Final energy demand, i.e. fuel demand (Et)
E40: Final energy demand per year (Et) (aggreated from DHW and SH) | F40: 29729 | G40: kWh/year | K40: Saved (substituted) final energy per year (Et) (due to the use of solar thermal) | L40: 9873 | M40: kWh/year | R40: Final energy demand per year (Et) (equal to the sum of the conv. and solar part of the solar assisted heating system) | S40: =F40+L40 -> 39602 | T40: kWh/year
E44: Result and summary (conventional part) | K44: Result and summary (solar part)
E45: Initial investment (I0) | F45: =F14 -> 13350 | G45: ='Default Values'!J10 -> € | K45: Final total investment (I0 - S0 - credits store) | L45: =L14-L21-L22-L15 -> 21183 | M45: ='Default Values'!J10 -> €
E46: Operation and maintenance costs (C) * | F46: =((F33+ F14*F35/100) * IF(real_discount_rate=0, T, ((1/(real_discount_rate/100))*(1 - ((1)/(1+real_discount_rate/100))^T))) + (F27*F28+F30*F31)*'Main Input'!$D$25/1000 * IF(real_discount_rate=rate_electricity_price, T/(1+real_discount_rate/100), ((1/(real_discount_rate/100-rate_electricity_price/100))*(1 - ((1+rate_electricity_price/100)/(1+real_discount_rate/100))^T))) + F40*'Main Input'!$D$23* IF(real_discount_rate=rate_gas_price, T/(1+real_discount_rate/100), ((1/(real_discount_rate/100-rate_gas_price/100))*(1 - ((1+rate_gas_price/100)/(1+real_discount_rate/100))^T))))*F49 -> 2616.81416 | G46: ='Default Values'!J10 & "/year" -> €/year | K46: Operation and maintenance costs (C)* | L46: =(L33+L45*L35/100* IF(real_discount_rate=0, T, ((1/(real_discount_rate/100))*(1 - ((1)/(1+real_discount_rate/100))^T)))+(L27*L28+L30*L31)*'Main Input'!$D$25/1000*IF(real_discount_rate=rate_electricity_price, T/(1+real_discount_rate/100), ((1/(real_discount_rate/100-rate_electricity_price/100))*(1 - ((1+rate_electricity_price/100)/(1+real_discount_rate/100))^T))))*L49 -> 257.30616 | M46: ='Default Values'!J10 & "/year" -> €/year
E47: Final energy demand per year (E) | F47: =F40 -> 29729 | G47: kWh/year | K47: Saved final energy (E) | L47: =L40 -> 9873 | M47: kWh/year
E48: Period of analysis (T) | F48: =T -> 25 | G48: year | K48: Period of analysis (T) | L48: =T -> 25 | M48: year
E49: Annuity factor (aT) | F49: =IF(real_discount_rate=0, 1/T,(real_discount_rate/100 * (1 + real_discount_rate/100)^T)/((1 + real_discount_rate/100)^T-1)) -> 0.04 | K49: Annuity factor (aT) | L49: =IF(real_discount_rate=0, 1/T,(real_discount_rate/100 * (1 + real_discount_rate/100)^T)/((1 + real_discount_rate/100)^T-1)) -> 0.04
E50: LCoHconv,fin | F50: =(F45 + (F46/annuity_factor*(1-TC_conv/100))-(DEP_conv*TC_conv/100)*IF(real_discount_rate=0,T,(((1-(1/(1+real_discount_rate/100))^(T+1))/(1-(1/(1+real_discount_rate/100))))-1)) - RV_conv/(1+real_discount_rate/100)^T) / (F47/annuity_factor) * 100 -> 10.59845323 | G50: =Currency_ct & "/kWh" -> ¢€/kWh | K50: LCoHsol,fin | L50: =(L45 + L46*(1-TC_solar/100)/annuity_factor-(DEP_solar*TC_solar/100)*IF(real_discount_rate=0,T,(((1-(1/(1+real_discount_rate/100))^(T+1))/(1-(1/(1+real_discount_rate/100))))-1))-RV_solar/(1+real_discount_rate/100)^T) / (L47/annuity_factor) * 100 -> 11.18835369 | M50: =Currency_ct & "/kWh" -> ¢€/kWh
D54: Result and summary (solar assited heating system) | R54: Result and Summary (purely conventional system)
F55: Final total investment (I0) | K55: =F45+L45 -> 34533 | L55: ='Default Values'!J10 -> € | R55: Initial investment (I0) | S55: =S14 -> 13350 | T55: ='Default Values'!J10 -> €
F56: Operation and maintenance costs (C)* | K56: =F46+L46 -> 2874.12032 | L56: ='Default Values'!J10 & "/year" -> €/year | R56: Operation and maintenance costs (C)* | S56: =((S14*S35/100+ S33)*IF(real_discount_rate=0, T, ((1/(real_discount_rate/100))*(1 - ((1)/(1+real_discount_rate/100))^T))) + (S27*S28+S30*S31)*'Main Input'!$D$25/1000*IF(real_discount_rate=rate_electricity_price, T/(1+real_discount_rate/100), ((1/(real_discount_rate/100-rate_electricity_price/100))*(1 - ((1+rate_electricity_price/100)/(1+real_discount_rate/100))^T))) + S40*'Main Input'!$D$23*IF(real_discount_rate=rate_gas_price, T/(1+real_discount_rate/100), ((1/(real_discount_rate/100-rate_gas_price/100))*(1 - ((1+rate_gas_price/100)/(1+real_discount_rate/100))^T))))*S59 -> 3277.97216 | T56: ='Default Values'!J10 & "/year" -> €/year
F57: Final energy demand per year (E) | K57: =F47+L47 -> 39602 | L57: kWh/year | R57: Final energy demand per year (E) | S57: =S40 -> 39602 | T57: kWh/year
F58: Period of analysis (T) | K58: =T -> 25 | L58: year | R58: Period of analysis (T) | S58: =T -> 25 | T58: year
F59: Annuity factor (aT) | K59: =IF(real_discount_rate=0, 1/T,(real_discount_rate/100 * (1 + real_discount_rate/100)^T)/((1 + real_discount_rate/100)^T-1)) -> 0.04 | R59: Annuity factor (aT) | S59: =IF(real_discount_rate=0, 1/T,(real_discount_rate/100 * (1 + real_discount_rate/100)^T)/((1 + real_discount_rate/100)^T-1)) -> 0.04
F60: Saved final energy by solar input | K60: =L40/(L40+F40)*100 -> 24.93055906 | L60: %
F61: LCoHov,fin | K61: =(K55 + ((L46*(1-TC_solar/100) + F46*(1-TC_conv/100)))/annuity_factor-DEP_solar*TC_solar/100-DEP_conv*TC_conv/100*IF(real_discount_rate=0,T,(((1-(1/(1+real_discount_rate/100))^(T+1))/(1-(1/(1+real_discount_rate/100))))-1))-RV_solar/(1+real_discount_rate/100)^T - RV_conv/(1+real_discount_rate/100)^T ) / (K57/annuity_factor) * 100 -> 10.74551871 | L61: =Currency_ct & "/kWh" -> ¢€/kWh | R61: LCoHov,fin (ref) | S61: =(S55 + (S56*(1-TC_conv/100))/annuity_factor-(DEP_only_conv*TC_conv/100)*IF(real_discount_rate=0,T,(((1-(1/(1+real_discount_rate/100))^(T+1))/(1-(1/(1+real_discount_rate/100))))-1)) - RV_only_conv/(1+real_discount_rate/100)^T) / (S57/annuity_factor) * 100 -> 9.625706176 | T61: =Currency_ct & "/kWh" -> ¢€/kWh
C65: * If a real discount rate or real rates of fuel/electrcity price increase are defined this value corresponds to the annualized value over the period of analysis.

Sheet Default Values (hidden)
A1: Parameter | B1: Country | C1: Household | D1: System | E1: Value | F1: Comments | H1: Country | I1: main currency | J1: small currency
A2: Annual fixed costs (conv. part) | B2: Austria | C2: Multi-Family House (MFH) | D2: Combined DHW and space heating (Combi) | E2: 0 | H2: Switzerland | I2: CHF | J2: Rp.
A3: Credit for conv. store | B3: Austria | C3: Multi-Family House (MFH) | D3: Combined DHW and space heating (Combi) | E3: 0 | H3: France | I3: € | J3: ¢€
A4: Credit for installation of conv. store | B4: Austria | C4: Multi-Family House (MFH) | D4: Combined DHW and space heating (Combi) | E4: 0 | H4: Germany | I4: € | J4: ¢€
A5: Electric power of controller (conv. part) | B5: Austria | C5: Multi-Family House (MFH) | D5: Combined DHW and space heating (Combi) | E5: 3 | H5: Austria | I5: € | J5: ¢€
A6: Electric power of controller (solar part) | B6: Austria | C6: Multi-Family House (MFH) | D6: Combined DHW and space heating (Combi) | E6: 3 | H6: Denmark | I6: DKK | J6: ¢DKK
A7: Electric power of pump (conv. part) | B7: Austria | C7: Multi-Family House (MFH) | D7: Combined DHW and space heating (Combi) | E7: 12 | H7: USA | I7: $ | J7: c$
A8: Electric power of pump (solar part) | B8: Austria | C8: Multi-Family House (MFH) | D8: Combined DHW and space heating (Combi) | E8: 12 | H8: Custom | I8: $ | J8: ¢€
A9: Final fuel (energy) demand per year (conv. part) | B9: Austria | C9: Multi-Family House (MFH) | D9: Combined DHW and space heating (Combi) | F9: empty value means no default value available
A10: Initial investment (conv. part) | B10: Austria | C10: Multi-Family House (MFH) | D10: Combined DHW and space heating (Combi) | F10: empty value means no default value available | H10: Selected currency: | J10: =IF('Main Input'!D9=H2,I2,IF('Main Input'!D9=H3,I3,IF('Main Input'!D9=H4,I4,IF('Main Input'!D9=H5,I5,IF('Main Input'!D9=H6,I6,IF('Main Input'!D9=H7,I7,IF('Main Input'!D9=H8,I8))))))) -> € | K10: =IF('Main Input'!D9=H2,J2,IF('Main Input'!D9=H3,J3,IF('Main Input'!D9=H4,J4,IF('Main Input'!D9=H5,J5,IF('Main Input'!D9=H6,J6,IF('Main Input'!D9=H7,J7,IF('Main Input'!D9=H8,J8))))))) -> ¢€
A11: Initial investment (solar part) | B11: Austria | C11: Multi-Family House (MFH) | D11: Combined DHW and space heating (Combi) | F11: empty value means no default value available
A12: Operating hours of controller (conv. part) | B12: Austria | C12: Multi-Family House (MFH) | D12: Combined DHW and space heating (Combi) | E12: 8760
A13: Operating hours of controller (solar part) | B13: Austria | C13: Multi-Family House (MFH) | D13: Combined DHW and space heating (Combi) | E13: 8760
A14: Operating hours of pump (conv. part) | B14: Austria | C14: Multi-Family House (MFH) | D14: Combined DHW and space heating (Combi) | E14: 4200
A15: Operating hours of pump (solar part) | B15: Austria | C15: Multi-Family House (MFH) | D15: Combined DHW and space heating (Combi) | E15: 1800
A16: Substituted (saved) final energy per year | B16: Austria | C16: Multi-Family House (MFH) | D16: Combined DHW and space heating (Combi) | F16: empty value means no default value available
A17: Total subsidies for the solar system | B17: Austria | C17: Multi-Family House (MFH) | D17: Combined DHW and space heating (Combi) | E17: 0
A18: Total yearly op. and maintenance costs (conv. part) | B18: Austria | C18: Multi-Family House (MFH) | D18: Combined DHW and space heating (Combi) | F18: empty value means no default value available
A19: Total yearly op. and maintenance costs (solar part) | B19: Austria | C19: Multi-Family House (MFH) | D19: Combined DHW and space heating (Combi) | F19: empty value means no default value available
A20: Annual fixed costs (conv. part) | B20: Austria | C20: Multi-Family House (MFH) | D20: Domestic hot water (DHW) | E20: 165
A21: Credit for conv. store | B21: Austria | C21: Multi-Family House (MFH) | D21: Domestic hot water (DHW) | E21: 4710
A22: Credit for installation of conv. store | B22: Austria | C22: Multi-Family House (MFH) | D22: Domestic hot water (DHW) | E22: 0
A23: Electric power of controller (conv. part) | B23: Austria | C23: Multi-Family House (MFH) | D23: Domestic hot water (DHW) | E23: 3
A24: Electric power of controller (solar part) | B24: Austria | C24: Multi-Family House (MFH) | D24: Domestic hot water (DHW) | E24: 3
A25: Electric power of pump (conv. part) | B25: Austria | C25: Multi-Family House (MFH) | D25: Domestic hot water (DHW) | E25: 12
A26: Electric power of pump (solar part) | B26: Austria | C26: Multi-Family House (MFH) | D26: Domestic hot water (DHW) | E26: 12
A27: Final fuel (energy) demand per year (conv. part) | B27: Austria | C27: Multi-Family House (MFH) | D27: Domestic hot water (DHW) | E27: 168175
A28: Initial investment (conv. part) | B28: Austria | C28: Multi-Family House (MFH) | D28: Domestic hot water (DHW) | E28: 18500
A29: Initial investment (solar part) | B29: Austria | C29: Multi-Family House (MFH) | D29: Domestic hot water (DHW) | E29: 31450
A30: Operating hours of controller (conv. part) | B30: Austria | C30: Multi-Family House (MFH) | D30: Domestic hot water (DHW) | E30: 8760
A31: Operating hours of controller (solar part) | B31: Austria | C31: Multi-Family House (MFH) | D31: Domestic hot water (DHW) | E31: 8760
A32: Operating hours of pump (conv. part) | B32: Austria | C32: Multi-Family House (MFH) | D32: Domestic hot water (DHW) | E32: 4190
A33: Operating hours of pump (solar part) | B33: Austria | C33: Multi-Family House (MFH) | D33: Domestic hot water (DHW) | E33: 2760
A34: Substituted (saved) final energy per year | B34: Austria | C34: Multi-Family House (MFH) | D34: Domestic hot water (DHW) | E34: 28732
A35: Total subsidies for the solar system | B35: Austria | C35: Multi-Family House (MFH) | D35: Domestic hot water (DHW) | E35: 0
A36: Total yearly op. and maintenance costs (conv. part) | B36: Austria | C36: Multi-Family House (MFH) | D36: Domestic hot water (DHW) | E36: 11648
A37: Total yearly op. and maintenance costs (solar part) | B37: Austria | C37: Multi-Family House (MFH) | D37: Domestic hot water (DHW) | E37: 284
A38: Annual fixed costs (purely conv.) | B38: Austria | C38: Multi-Family House (MFH) | E38: 166
A39: Electric power of controller (purely conv.) | B39: Austria | C39: Multi-Family House (MFH) | E39: 3
A40: Electric power of pump (purely conv.) | B40: Austria | C40: Multi-Family House (MFH) | E40: 12
A41: Operating hours of controller (purely conv.) | B41: Austria | C41: Multi-Family House (MFH) | E41: 8760
A42: Operating hours of pump (purely conv.) | B42: Austria | C42: Multi-Family House (MFH) | E42: 4190
A43: Total yearly op. and maintenance costs (purely conv.) | B43: Austria | C43: Multi-Family House (MFH) | E43: 13544
A44: Annual fixed costs (conv. part) | B44: Austria | C44: Single-Family House (SFH) | D44: Combined DHW and space heating (Combi) | E44: 78
A45: Credit for conv. store | B45: Austria | C45: Single-Family House (SFH) | D45: Combined DHW and space heating (Combi) | E45: 715
A46: Credit for installation of conv. store | B46: Austria | C46: Single-Family House (SFH) | D46: Combined DHW and space heating (Combi) | E46: 0
A47: Electric power of controller (conv. part) | B47: Austria | C47: Single-Family House (SFH) | D47: Combined DHW and space heating (Combi) | E47: 3
A48: Electric power of controller (solar part) | B48: Austria | C48: Single-Family House (SFH) | D48: Combined DHW and space heating (Combi) | E48: 3
A49: Electric power of pump (conv. part) | B49: Austria | C49: Single-Family House (SFH) | D49: Combined DHW and space heating (Combi) | E49: 7
A50: Electric power of pump (solar part) | B50: Austria | C50: Single-Family House (SFH) | D50: Combined DHW and space heating (Combi) | E50: 7
A51: Final fuel (energy) demand per year (conv. part) | B51: Austria | C51: Single-Family House (SFH) | D51: Combined DHW and space heating (Combi) | E51: 12259
A52: Initial investment (conv. part) | B52: Austria | C52: Single-Family House (SFH) | D52: Combined DHW and space heating (Combi) | E52: 7560
A53: Initial investment (solar part) | B53: Austria | C53: Single-Family House (SFH) | D53: Combined DHW and space heating (Combi) | E53: 12495
A54: Operating hours of controller (conv. part) | B54: Austria | C54: Single-Family House (SFH) | D54: Combined DHW and space heating (Combi) | E54: 8760
A55: Operating hours of controller (solar part) | B55: Austria | C55: Single-Family House (SFH) | D55: Combined DHW and space heating (Combi) | E55: 8760
A56: Operating hours of pump (conv. part) | B56: Austria | C56: Single-Family House (SFH) | D56: Combined DHW and space heating (Combi) | E56: 4165
A57: Operating hours of pump (solar part) | B57: Austria | C57: Single-Family House (SFH) | D57: Combined DHW and space heating (Combi) | E57: 1872
A58: Substituted (saved) final energy per year | B58: Austria | C58: Single-Family House (SFH) | D58: Combined DHW and space heating (Combi) | E58: 4142
A59: Total subsidies for the solar system | B59: Austria | C59: Single-Family House (SFH) | D59: Combined DHW and space heating (Combi) | E59: 0
A60: Total yearly op. and maintenance costs (conv. part) | B60: Austria | C60: Single-Family House (SFH) | D60: Combined DHW and space heating (Combi) | E60: 1123
A61: Total yearly op. and maintenance costs (solar part) | B61: Austria | C61: Single-Family House (SFH) | D61: Combined DHW and space heating (Combi) | E61: 242
A62: Annual fixed costs (conv. part) | B62: Austria | C62: Single-Family House (SFH) | D62: Domestic hot water (DHW) | E62: 78
A63: Credit for conv. store | B63: Austria | C63: Single-Family House (SFH) | D63: Domestic hot water (DHW) | E63: 715
A64: Credit for installation of conv. store | B64: Austria | C64: Single-Family House (SFH) | D64: Domestic hot water (DHW) | E64: 0
A65: Electric power of controller (conv. part) | B65: Austria | C65: Single-Family House (SFH) | D65: Domestic hot water (DHW) | E65: 3
A66: Electric power of controller (solar part) | B66: Austria | C66: Single-Family House (SFH) | D66: Domestic hot water (DHW) | E66: 3
A67: Electric power of pump (conv. part) | B67: Austria | C67: Single-Family House (SFH) | D67: Domestic hot water (DHW) | E67: 7
A68: Electric power of pump (solar part) | B68: Austria | C68: Single-Family House (SFH) | D68: Domestic hot water (DHW) | E68: 7
A69: Final fuel (energy) demand per year (conv. part) | B69: Austria | C69: Single-Family House (SFH) | D69: Domestic hot water (DHW) | E69: 13807
A70: Initial investment (conv. part) | B70: Austria | C70: Single-Family House (SFH) | D70: Domestic hot water (DHW) | E70: 7560
A71: Initial investment (solar part) | B71: Austria | C71: Single-Family House (SFH) | D71: Domestic hot water (DHW) | E71: 5740
A72: Operating hours of controller (conv. part) | B72: Austria | C72: Single-Family House (SFH) | D72: Domestic hot water (DHW) | E72: 8760
A73: Operating hours of controller (solar part) | B73: Austria | C73: Single-Family House (SFH) | D73: Domestic hot water (DHW) | E73: 8760
A74: Operating hours of pump (conv. part) | B74: Austria | C74: Single-Family House (SFH) | D74: Domestic hot water (DHW) | E74: 4165
A75: Operating hours of pump (solar part) | B75: Austria | C75: Single-Family House (SFH) | D75: Domestic hot water (DHW) | E75: 2523
A76: Substituted (saved) final energy per year | B76: Austria | C76: Single-Family House (SFH) | D76: Domestic hot water (DHW) | E76: 2594
A77: Total subsidies for the solar system | B77: Austria | C77: Single-Family House (SFH) | D77: Domestic hot water (DHW) | E77: 0
A78: Total yearly op. and maintenance costs (conv. part) | B78: Austria | C78: Single-Family House (SFH) | D78: Domestic hot water (DHW) | E78: 1225
A79: Total yearly op. and maintenance costs (solar part) | B79: Austria | C79: Single-Family House (SFH) | D79: Domestic hot water (DHW) | E79: 108
A80: Annual fixed costs (purely conv.) | B80: Austria | C80: Single-Family House (SFH) | E80: 77
A81: Electric power of controller (purely conv.) | B81: Austria | C81: Single-Family House (SFH) | E81: 3
A82: Electric power of pump (purely conv.) | B82: Austria | C82: Single-Family House (SFH) | E82: 7
A83: Operating hours of controller (purely conv.) | B83: Austria | C83: Single-Family House (SFH) | E83: 8760
A84: Operating hours of pump (purely conv.) | B84: Austria | C84: Single-Family House (SFH) | E84: 5824
A85: Total yearly op. and maintenance costs (purely conv.) | B85: Austria | C85: Single-Family House (SFH) | E85: 1398
A86: Asset depreciation of a pure conv. system | B86: Austria | E86: 0
A87: Asset depreciation of the conv. part | B87: Austria | E87: 0
A88: Asset depreciation of the solar part | B88: Austria | E88: 0
A89: Corporate tax rate for conv. systems | B89: Austria | E89: 0
A90: Corporate tax rate for solar systems | B90: Austria | E90: 0
A91: Electricity price | B91: Austria | E91: 0.17
A92: Gas price | B92: Austria | E92: 0.066
A93: Period of analysis | B93: Austria | E93: 25
A94: Annual fixed costs (conv. part) | B94: Denmark | C94: Multi-Family House (MFH) | D94: Combined DHW and space heating (Combi) | E94: 373 | F94: DKK
A95: Credit for conv. store | B95: Denmark | C95: Multi-Family House (MFH) | D95: Combined DHW and space heating (Combi) | E95: 0 | F95: DKK
A96: Credit for installation of conv. store | B96: Denmark | C96: Multi-Family House (MFH) | D96: Combined DHW and space heating (Combi) | E96: 0 | F96: DKK
A97: Electric power of controller (conv. part) | B97: Denmark | C97: Multi-Family House (MFH) | D97: Combined DHW and space heating (Combi) | E97: 3
A98: Electric power of controller (solar part) | B98: Denmark | C98: Multi-Family House (MFH) | D98: Combined DHW and space heating (Combi) | E98: 3
A99: Electric power of pump (conv. part) | B99: Denmark | C99: Multi-Family House (MFH) | D99: Combined DHW and space heating (Combi) | E99: 50
A100: Electric power of pump (solar part) | B100: Denmark | C100: Multi-Family House (MFH) | D100: Combined DHW and space heating (Combi) | E100: 50
A101: Final fuel (energy) demand per year (conv. part) | B101: Denmark | C101: Multi-Family House (MFH) | D101: Combined DHW and space heating (Combi) | F101: empty value means no default value available
A102: Initial investment (conv. part) | B102: Denmark | C102: Multi-Family House (MFH) | D102: Combined DHW and space heating (Combi) | F102: DKK
A103: Initial investment (solar part) | B103: Denmark | C103: Multi-Family House (MFH) | D103: Combined DHW and space heating (Combi) | F103: DKK
A104: Operating hours of controller (conv. part) | B104: Denmark | C104: Multi-Family House (MFH) | D104: Combined DHW and space heating (Combi) | E104: 8760
A105: Operating hours of controller (solar part) | B105: Denmark | C105: Multi-Family House (MFH) | D105: Combined DHW and space heating (Combi) | E105: 8760
A106: Operating hours of pump (conv. part) | B106: Denmark | C106: Multi-Family House (MFH) | D106: Combined DHW and space heating (Combi) | E106: 0
A107: Operating hours of pump (solar part) | B107: Denmark | C107: Multi-Family House (MFH) | D107: Combined DHW and space heating (Combi) | E107: 1800
A108: Substituted (saved) final energy per year | B108: Denmark | C108: Multi-Family House (MFH) | D108: Combined DHW and space heating (Combi) | F108: empty value means no default value available
A109: Total subsidies for the solar system | B109: Denmark | C109: Multi-Family House (MFH) | D109: Combined DHW and space heating (Combi) | E109: 0
A110: Total yearly op. and maintenance costs (conv. part) | B110: Denmark | C110: Multi-Family House (MFH) | D110: Combined DHW and space heating (Combi) | F110: DKK
A111: Total yearly op. and maintenance costs (solar part) | B111: Denmark | C111: Multi-Family House (MFH) | D111: Combined DHW and space heating (Combi) | F111: DKK
A112: Annual fixed costs (conv. part) | B112: Denmark | C112: Multi-Family House (MFH) | D112: Domestic hot water (DHW) | E112: 372.7 | F112: DKK
A113: Credit for conv. store | B113: Denmark | C113: Multi-Family House (MFH) | D113: Domestic hot water (DHW) | E113: 0 | F113: DKK
A114: Credit for installation of conv. store | B114: Denmark | C114: Multi-Family House (MFH) | D114: Domestic hot water (DHW) | E114: 0 | F114: DKK
A115: Electric power of controller (conv. part) | B115: Denmark | C115: Multi-Family House (MFH) | D115: Domestic hot water (DHW) | E115: 2
A116: Electric power of controller (solar part) | B116: Denmark | C116: Multi-Family House (MFH) | D116: Domestic hot water (DHW) | E116: 3
A117: Electric power of pump (conv. part) | B117: Denmark | C117: Multi-Family House (MFH) | D117: Domestic hot water (DHW) | E117: 12
A118: Electric power of pump (solar part) | B118: Denmark | C118: Multi-Family House (MFH) | D118: Domestic hot water (DHW) | E118: 25
A119: Final fuel (energy) demand per year (conv. part) | B119: Denmark | C119: Multi-Family House (MFH) | D119: Domestic hot water (DHW) | F119: empty value means no default value available
A120: Initial investment (conv. part) | B120: Denmark | C120: Multi-Family House (MFH) | D120: Domestic hot water (DHW) | F120: DKK
A121: Initial investment (solar part) | B121: Denmark | C121: Multi-Family House (MFH) | D121: Domestic hot water (DHW) | F121: DKK
A122: Operating hours of controller (conv. part) | B122: Denmark | C122: Multi-Family House (MFH) | D122: Domestic hot water (DHW) | E122: 8760
A123: Operating hours of controller (solar part) | B123: Denmark | C123: Multi-Family House (MFH) | D123: Domestic hot water (DHW) | E123: 8760
A124: Operating hours of pump (conv. part) | B124: Denmark | C124: Multi-Family House (MFH) | D124: Domestic hot water (DHW) | E124: 0
A125: Operating hours of pump (solar part) | B125: Denmark | C125: Multi-Family House (MFH) | D125: Domestic hot water (DHW) | E125: 1412
A126: Substituted (saved) final energy per year | B126: Denmark | C126: Multi-Family House (MFH) | D126: Domestic hot water (DHW) | F126: empty value means no default value available
A127: Total subsidies for the solar system | B127: Denmark | C127: Multi-Family House (MFH) | D127: Domestic hot water (DHW) | E127: 0
A128: Total yearly op. and maintenance costs (conv. part) | B128: Denmark | C128: Multi-Family House (MFH) | D128: Domestic hot water (DHW) | F128: DKK
A129: Total yearly op. and maintenance costs (solar part) | B129: Denmark | C129: Multi-Family House (MFH) | D129: Domestic hot water (DHW) | F129: DKK
A130: Annual fixed costs (purely conv.) | B130: Denmark | C130: Multi-Family House (MFH) | E130: 372.7 | F130: DKK
A131: Electric power of controller (purely conv.) | B131: Denmark | C131: Multi-Family House (MFH) | E131: 2
A132: Electric power of pump (purely conv.) | B132: Denmark | C132: Multi-Family House (MFH) | F132: empty value means no default value available
A133: Operating hours of controller (purely conv.) | B133: Denmark | C133: Multi-Family House (MFH) | E133: 8760
A134: Operating hours of pump (purely conv.) | B134: Denmark | C134: Multi-Family House (MFH) | E134: 4200
A135: Total yearly op. and maintenance costs (purely conv.) | B135: Denmark | C135: Multi-Family House (MFH) | F135: DKK
A136: Annual fixed costs (conv. part) | B136: Denmark | C136: Single-Family House (SFH) | D136: Combined DHW and space heating (Combi) | E136: 372.7 | F136: DKK
A137: Credit for conv. store | B137: Denmark | C137: Single-Family House (SFH) | D137: Combined DHW and space heating (Combi) | E137: 0 | F137: DKK
A138: Credit for installation of conv. store | B138: Denmark | C138: Single-Family House (SFH) | D138: Combined DHW and space heating (Combi) | E138: 0 | F138: DKK
A139: Electric power of controller (conv. part) | B139: Denmark | C139: Single-Family House (SFH) | D139: Combined DHW and space heating (Combi) | E139: 2
A140: Electric power of controller (solar part) | B140: Denmark | C140: Single-Family House (SFH) | D140: Combined DHW and space heating (Combi) | E140: 3
A141: Electric power of pump (conv. part) | B141: Denmark | C141: Single-Family House (SFH) | D141: Combined DHW and space heating (Combi) | E141: 7
A142: Electric power of pump (solar part) | B142: Denmark | C142: Single-Family House (SFH) | D142: Combined DHW and space heating (Combi) | E142: 7
A143: Final fuel (energy) demand per year (conv. part) | B143: Denmark | C143: Single-Family House (SFH) | D143: Combined DHW and space heating (Combi) | F143: empty value means no default value available
A144: Initial investment (conv. part) | B144: Denmark | C144: Single-Family House (SFH) | D144: Combined DHW and space heating (Combi) | F144: DKK
A145: Initial investment (solar part) | B145: Denmark | C145: Single-Family House (SFH) | D145: Combined DHW and space heating (Combi) | F145: DKK
A146: Operating hours of controller (conv. part) | B146: Denmark | C146: Single-Family House (SFH) | D146: Combined DHW and space heating (Combi) | E146: 8760
A147: Operating hours of controller (solar part) | B147: Denmark | C147: Single-Family House (SFH) | D147: Combined DHW and space heating (Combi) | E147: 8760
A148: Operating hours of pump (conv. part) | B148: Denmark | C148: Single-Family House (SFH) | D148: Combined DHW and space heating (Combi) | E148: 0
A149: Operating hours of pump (solar part) | B149: Denmark | C149: Single-Family House (SFH) | D149: Combined DHW and space heating (Combi) | E149: 3987
A150: Substituted (saved) final energy per year | B150: Denmark | C150: Single-Family House (SFH) | D150: Combined DHW and space heating (Combi) | F150: empty value means no default value available
A151: Total subsidies for the solar system | B151: Denmark | C151: Single-Family House (SFH) | D151: Combined DHW and space heating (Combi) | E151: 0
A152: Total yearly op. and maintenance costs (conv. part) | B152: Denmark | C152: Single-Family House (SFH) | D152: Combined DHW and space heating (Combi) | F152: DKK
A153: Total yearly op. and maintenance costs (solar part) | B153: Denmark | C153: Single-Family House (SFH) | D153: Combined DHW and space heating (Combi) | F153: DKK
A154: Annual fixed costs (conv. part) | B154: Denmark | C154: Single-Family House (SFH) | D154: Domestic hot water (DHW) | E154: 819.7 | F154: DKK
A155: Credit for conv. store | B155: Denmark | C155: Single-Family House (SFH) | D155: Domestic hot water (DHW) | E155: 4097.5 | F155: DKK
A156: Credit for installation of conv. store | B156: Denmark | C156: Single-Family House (SFH) | D156: Domestic hot water (DHW) | E156: 0 | F156: DKK
A157: Electric power of controller (conv. part) | B157: Denmark | C157: Single-Family House (SFH) | D157: Domestic hot water (DHW) | E157: 2
A158: Electric power of controller (solar part) | B158: Denmark | C158: Single-Family House (SFH) | D158: Domestic hot water (DHW) | E158: 3
A159: Electric power of pump (conv. part) | B159: Denmark | C159: Single-Family House (SFH) | D159: Domestic hot water (DHW) | E159: 7
A160: Electric power of pump (solar part) | B160: Denmark | C160: Single-Family House (SFH) | D160: Domestic hot water (DHW) | E160: 30
A161: Final fuel (energy) demand per year (conv. part) | B161: Denmark | C161: Single-Family House (SFH) | D161: Domestic hot water (DHW) | E161: 16500
A162: Initial investment (conv. part) | B162: Denmark | C162: Single-Family House (SFH) | D162: Domestic hot water (DHW) | E162: 29993.7 | F162: DKK
A163: Initial investment (solar part) | B163: Denmark | C163: Single-Family House (SFH) | D163: Domestic hot water (DHW) | E163: 23840 | F163: DKK
A164: Operating hours of controller (conv. part) | B164: Denmark | C164: Single-Family House (SFH) | D164: Domestic hot water (DHW) | E164: 8760
A165: Operating hours of controller (solar part) | B165: Denmark | C165: Single-Family House (SFH) | D165: Domestic hot water (DHW) | E165: 8760
A166: Operating hours of pump (conv. part) | B166: Denmark | C166: Single-Family House (SFH) | D166: Domestic hot water (DHW) | E166: 0
A167: Operating hours of pump (solar part) | B167: Denmark | C167: Single-Family House (SFH) | D167: Domestic hot water (DHW) | E167: 2100
A168: Substituted (saved) final energy per year | B168: Denmark | C168: Single-Family House (SFH) | D168: Domestic hot water (DHW) | E168: 1756
A169: Total subsidies for the solar system | B169: Denmark | C169: Single-Family House (SFH) | D169: Domestic hot water (DHW) | E169: 0
A170: Total yearly op. and maintenance costs (conv. part) | B170: Denmark | C170: Single-Family House (SFH) | D170: Domestic hot water (DHW) | E170: 12811 | F170: DKK
A171: Total yearly op. and maintenance costs (solar part) | B171: Denmark | C171: Single-Family House (SFH) | D171: Domestic hot water (DHW) | E171: 581 | F171: DKK
A172: Annual fixed costs (purely conv.) | B172: Denmark | C172: Single-Family House (SFH) | E172: 819.7 | F172: DKK
A173: Electric power of controller (purely conv.) | B173: Denmark | C173: Single-Family House (SFH) | E173: 2
A174: Electric power of pump (purely conv.) | B174: Denmark | C174: Single-Family House (SFH) | E174: 30
A175: Operating hours of controller (purely conv.) | B175: Denmark | C175: Single-Family House (SFH) | E175: 8760
A176: Operating hours of pump (purely conv.) | B176: Denmark | C176: Single-Family House (SFH) | E176: 4200
A177: Total yearly op. and maintenance costs (purely conv.) | B177: Denmark | C177: Single-Family House (SFH) | E177: 14251 | F177: DKK
A178: Asset depreciation of a pure conv. system | B178: Denmark | E178: 0 | F178: DKK
A179: Asset depreciation of the conv. part | B179: Denmark | E179: 0 | F179: DKK
A180: Asset depreciation of the solar part | B180: Denmark | E180: 0 | F180: DKK
A181: Corporate tax rate for conv. systems | B181: Denmark | E181: 0 | F181: DKK
A182: Corporate tax rate for solar systems | B182: Denmark | E182: 0
A183: Electricity price | B183: Denmark | E183: 2.087 | F183: DKK
A184: Gas price | B184: Denmark | E184: 0.67 | F184: DKK
A185: Period of analysis | B185: Denmark | E185: 25
A186: Annual fixed costs (conv. part) | B186: France | C186: Multi-Family House (MFH) | D186: Combined DHW and space heating (Combi) | E186: 130
A187: Annual fixed costs (conv. part) | B187: France | C187: Multi-Family House (MFH) | D187: Domestic hot water (DHW) | E187: 453
A188: Annual fixed costs (purely conv.) | B188: France | C188: Multi-Family House (MFH) | E188: 497
A189: Credit for conv. store | B189: France | C189: Multi-Family House (MFH) | D189: Combined DHW and space heating (Combi) | E189: 0
A190: Credit for conv. store | B190: France | C190: Multi-Family House (MFH) | D190: Domestic hot water (DHW) | E190: 2000
A191: Credit for installation of conv. store | B191: France | C191: Multi-Family House (MFH) | D191: Combined DHW and space heating (Combi) | E191: 0
A192: Credit for installation of conv. store | B192: France | C192: Multi-Family House (MFH) | D192: Domestic hot water (DHW) | E192: 0
A193: Electric power of controller (conv. part) | B193: France | C193: Multi-Family House (MFH) | D193: Combined DHW and space heating (Combi) | E193: 20
A194: Electric power of controller (conv. part) | B194: France | C194: Multi-Family House (MFH) | D194: Domestic hot water (DHW) | E194: 20
A195: Electric power of controller (purely conv.) | B195: France | C195: Multi-Family House (MFH) | E195: 20
A196: Electric power of controller (solar part) | B196: France | C196: Multi-Family House (MFH) | D196: Combined DHW and space heating (Combi) | E196: 20
A197: Electric power of controller (solar part) | B197: France | C197: Multi-Family House (MFH) | D197: Domestic hot water (DHW) | E197: 20
A198: Electric power of pump (conv. part) | B198: France | C198: Multi-Family House (MFH) | D198: Combined DHW and space heating (Combi) | E198: 0
A199: Electric power of pump (conv. part) | B199: France | C199: Multi-Family House (MFH) | D199: Domestic hot water (DHW) | E199: 0
A200: Electric power of pump (purely conv.) | B200: France | C200: Multi-Family House (MFH) | E200: 150
... 289 more rows
